[Event "Titled Tuesday Blitz May 03 Late 2022"]
[White "Fedoseev, Vladimir"]
[Black "Keymer, Vincent"]
[WhiteFideId "24130737"]
[BlackFideId "12940690"]
[WhiteElo "2726"]
[BlackElo "2557"]
[Result "0-1"]
[Round "09"]
[TimeControl "180+1"]
[Date "2022.05.03"]
[WhiteClock "0:00:03"]
[BlackClock "0:00:15"]

1. e4 {[%clk 0:02:59]}  c6 {[%clk 0:02:59]} 2. d4 {[%clk 0:02:58]}  d5 {[%clk 0:03:00]} 3. e5 {[%clk 0:02:58]}  Bf5 {[%clk 0:03:00]} 4. Nf3 {[%clk 0:02:58]}  e6 {[%clk 0:03:00]} 5. Be2 {[%clk 0:02:58]}  c5 {[%clk 0:03:01]} 6. c3 {[%clk 0:02:56]}  Nc6 {[%clk 0:03:00]} 7. O-O {[%clk 0:02:55]}  Bg6 {[%clk 0:03:00]} 8. Be3 {[%clk 0:02:21]}  cxd4 {[%clk 0:02:59]} 9. Nxd4 {[%clk 0:02:19]}  Nxe5 {[%clk 0:02:59]} 10. f4 {[%clk 0:01:57]}  Nc6 {[%clk 0:02:43]} 11. f5 {[%clk 0:01:50]}  exf5 {[%clk 0:02:43]} 12. Bb5 {[%clk 0:01:41]}  Bc5 {[%clk 0:02:24]} 13. Kh1 {[%clk 0:01:06]}  Bxd4 {[%clk 0:01:54]} 14. Bxd4 {[%clk 0:01:05]}  Nf6 {[%clk 0:01:54]} 15. Re1+ {[%clk 0:01:01]}  Ne4 {[%clk 0:01:49]} 16. Bxg7 {[%clk 0:00:59]}  Rg8 {[%clk 0:01:49]} 17. Bd4 {[%clk 0:00:58]}  Qh4 {[%clk 0:01:41]} 18. Nd2 {[%clk 0:00:54]}  Bh5 {[%clk 0:01:08]} 19. Qa4 {[%clk 0:00:49]}  Kd7 {[%clk 0:00:54]} 20. Nxe4 {[%clk 0:00:41]}  fxe4 {[%clk 0:00:55]} 21. Bf1 {[%clk 0:00:35]}  Kc7 {[%clk 0:00:48]} 22. Be3 {[%clk 0:00:30]}  f5 {[%clk 0:00:46]} 23. Qc2 {[%clk 0:00:17]}  f4 {[%clk 0:00:43]} 24. Bf2 {[%clk 0:00:15]}  Qg5 {[%clk 0:00:43]} 25. c4 {[%clk 0:00:15]}  e3 {[%clk 0:00:39]} 26. cxd5 {[%clk 0:00:10]}  Qxd5 {[%clk 0:00:34]} 27. Bh4 {[%clk 0:00:07]}  Rae8 {[%clk 0:00:32]} 28. Qxh7+ {[%clk 0:00:06]}  Kb8 {[%clk 0:00:30]} 29. Qh6 {[%clk 0:00:05]}  f3 {[%clk 0:00:28]} 30. Bg3+ {[%clk 0:00:04]}  Rxg3 {[%clk 0:00:19]} 31. Qf4+ {[%clk 0:00:04]}  Ka8 {[%clk 0:00:16]} 32. Qxg3 {[%clk 0:00:04]}  e2 {[%clk 0:00:17]} 33. gxf3 {[%clk 0:00:03]}  exf1=Q+ {[%clk 0:00:17]} 34. Rxf1 {[%clk 0:00:03]}  Nd4 {[%clk 0:00:17]} 35. Rf2 {[%clk 0:00:03]}  Bxf3+ {[%clk 0:00:17]} 36. Rxf3 {[%clk 0:00:02]}  Nxf3 {[%clk 0:00:16]} 37. Qg2 {[%clk 0:00:03]}  Rg8 {[%clk 0:00:15]} 38. Rb1 {[%clk 0:00:03]}  Rxg2 {[%clk 0:00:15]} 0-1


[Site "https://www.chess.com"]

[Event "Titled Tuesday Blitz May 03 Late 2022"]
[White "Jacobson, Brandon"]
[Black "Hambleton, Aman"]
[WhiteFideId "30901561"]
[BlackFideId "2606577"]
[WhiteElo "2362"]
[BlackElo "2552"]
[Result "1-0"]
[Round "09"]
[TimeControl "180+1"]
[Date "2022.05.03"]
[WhiteClock "0:00:11"]
[BlackClock "0:00:01"]

1. d4 {[%clk 0:03:00]}  Nf6 {[%clk 0:02:47]} 2. c4 {[%clk 0:03:00]}  e6 {[%clk 0:02:45]} 3. Nf3 {[%clk 0:03:00]}  b6 {[%clk 0:02:40]} 4. g3 {[%clk 0:03:00]}  Ba6 {[%clk 0:02:29]} 5. Qc2 {[%clk 0:03:00]}  Bb7 {[%clk 0:02:24]} 6. Bg2 {[%clk 0:03:00]}  Bb4+ {[%clk 0:02:21]} 7. Bd2 {[%clk 0:02:58]}  Be7 {[%clk 0:02:08]} 8. Nc3 {[%clk 0:02:58]}  d5 {[%clk 0:02:04]} 9. cxd5 {[%clk 0:02:59]}  exd5 {[%clk 0:01:47]} 10. O-O {[%clk 0:02:50]}  O-O {[%clk 0:01:46]} 11. Bf4 {[%clk 0:02:50]}  c6 {[%clk 0:01:06]} 12. Ne5 {[%clk 0:02:42]}  Nbd7 {[%clk 0:00:59]} 13. e4 {[%clk 0:02:36]}  Nxe5 {[%clk 0:00:25]} 14. dxe5 {[%clk 0:02:37]}  Nxe4 {[%clk 0:00:25]} 15. Nxe4 {[%clk 0:02:38]}  dxe4 {[%clk 0:00:26]} 16. Bxe4 {[%clk 0:02:38]}  h6 {[%clk 0:00:27]} 17. Rad1 {[%clk 0:01:35]}  Qe8 {[%clk 0:00:27]} 18. Qb3 {[%clk 0:01:19]}  Bc5 {[%clk 0:00:21]} 19. Bb1 {[%clk 0:01:02]}  Qe6 {[%clk 0:00:02]} 20. Qc2 {[%clk 0:01:02]}  g6 {[%clk 0:00:02]} 21. Bxh6 {[%clk 0:00:59]}  Rfd8 {[%clk 0:00:02]} 22. Qe4 {[%clk 0:00:53]}  Re8 {[%clk 0:00:01]} 23. Rfe1 {[%clk 0:00:29]}  Rad8 {[%clk 0:00:01]} 24. Rxd8 {[%clk 0:00:30]}  Rxd8 {[%clk 0:00:02]} 25. Bg5 {[%clk 0:00:30]}  Re8 {[%clk 0:00:03]} 26. Qh4 {[%clk 0:00:17]}  Be7 {[%clk 0:00:02]} 27. Bxe7 {[%clk 0:00:16]}  Rxe7 {[%clk 0:00:02]} 28. Bc2 {[%clk 0:00:11]}  Rd7 {[%clk 0:00:03]} 29. Bb3 {[%clk 0:00:11]}  Qe7 {[%clk 0:00:01]} 30. e6 {[%clk 0:00:10]}  Qxh4 {[%clk 0:00:01]} 31. exd7 {[%clk 0:00:10]}  Qf6 {[%clk 0:00:01]} 32. Re8+ {[%clk 0:00:11]} 1-0


[Site "https://www.chess.com"]

[Event "Titled Tuesday Blitz May 03 Late 2022"]
[White "Kazakouski, Valery"]
[Black "Fishbein, Alexander"]
[WhiteFideId "13507443"]
[BlackFideId "2000377"]
[WhiteElo "2524"]
[BlackElo "2442"]
[Result "0-1"]
[Round "09"]
[TimeControl "180+1"]
[Date "2022.05.03"]
[WhiteClock "0:01:50"]
[BlackClock "0:01:09"]

1. d4 {[%clk 0:02:54]}  Nf6 {[%clk 0:02:59]} 2. c4 {[%clk 0:02:53]}  g6 {[%clk 0:02:59]} 3. Nc3 {[%clk 0:02:53]}  Bg7 {[%clk 0:02:59]} 4. e4 {[%clk 0:02:53]}  d6 {[%clk 0:02:59]} 5. h3 {[%clk 0:02:54]}  O-O {[%clk 0:02:59]} 6. Be3 {[%clk 0:02:54]}  c5 {[%clk 0:02:56]} 7. d5 {[%clk 0:02:55]}  b5 {[%clk 0:02:51]} 8. cxb5 {[%clk 0:02:53]}  a6 {[%clk 0:02:51]} 9. a4 {[%clk 0:02:52]}  axb5 {[%clk 0:02:51]} 10. Bxb5 {[%clk 0:02:52]}  Ba6 {[%clk 0:02:51]} 11. Qc2 {[%clk 0:02:39]}  Nxe4 {[%clk 0:02:36]} 12. Bxa6 {[%clk 0:02:26]}  Nxc3 {[%clk 0:02:27]} 13. Bc4 {[%clk 0:02:25]}  Qa5 {[%clk 0:01:58]} 14. Bd2 {[%clk 0:02:23]}  Qb4 {[%clk 0:01:56]} 15. b3 {[%clk 0:02:20]}  e6 {[%clk 0:01:32]} 16. Ne2 {[%clk 0:02:09]}  exd5 {[%clk 0:01:28]} 17. Bxd5 {[%clk 0:02:00]}  Nxd5 {[%clk 0:01:10]} 18. Bxb4 {[%clk 0:01:50]}  Nxb4 {[%clk 0:01:09]} 0-1


[Site "https://www.chess.com"]

[Event "Titled Tuesday Blitz May 03 Late 2022"]
[White "Kholin, Aleksandr"]
[Black "Koellner, Ruben Gideon"]
[WhiteFideId "14179385"]
[BlackFideId "12993093"]
[WhiteElo "2477"]
[BlackElo "2610"]
[Result "0-1"]
[Round "09"]
[TimeControl "180+1"]
[Date "2022.05.03"]
[WhiteClock "0:01:22"]
[BlackClock "0:00:28"]

1. d4 {[%clk 0:03:00]}  Nf6 {[%clk 0:02:19]} 2. c4 {[%clk 0:02:59]}  e6 {[%clk 0:02:20]} 3. Nf3 {[%clk 0:02:59]}  c5 {[%clk 0:02:20]} 4. d5 {[%clk 0:02:58]}  d6 {[%clk 0:02:21]} 5. Nc3 {[%clk 0:02:58]}  exd5 {[%clk 0:02:22]} 6. Nxd5 {[%clk 0:02:57]}  Nxd5 {[%clk 0:02:17]} 7. Qxd5 {[%clk 0:02:56]}  Nc6 {[%clk 0:02:17]} 8. Bf4 {[%clk 0:02:54]}  Be6 {[%clk 0:02:11]} 9. Qd2 {[%clk 0:02:52]}  Bxc4 {[%clk 0:02:08]} 10. Rd1 {[%clk 0:02:51]}  Bxa2 {[%clk 0:02:00]} 11. e3 {[%clk 0:02:40]}  Bb3 {[%clk 0:01:57]} 12. Rc1 {[%clk 0:02:36]}  Be7 {[%clk 0:01:57]} 13. Bd3 {[%clk 0:02:33]}  Qa5 {[%clk 0:01:51]} 14. O-O {[%clk 0:02:27]}  Qxd2 {[%clk 0:01:48]} 15. Nxd2 {[%clk 0:02:28]}  Be6 {[%clk 0:01:48]} 16. Ne4 {[%clk 0:02:22]}  Rd8 {[%clk 0:01:42]} 17. Rfd1 {[%clk 0:02:21]}  O-O {[%clk 0:01:37]} 18. Bb5 {[%clk 0:02:17]}  Ne5 {[%clk 0:01:32]} 19. Nxc5 {[%clk 0:02:15]}  dxc5 {[%clk 0:01:27]} 20. Bxe5 {[%clk 0:02:14]}  Rxd1+ {[%clk 0:01:25]} 21. Rxd1 {[%clk 0:02:14]}  Rd8 {[%clk 0:01:26]} 22. Rxd8+ {[%clk 0:02:13]}  Bxd8 {[%clk 0:01:27]} 23. Kf1 {[%clk 0:02:09]}  a6 {[%clk 0:01:23]} 24. Bd3 {[%clk 0:02:08]}  Bf6 {[%clk 0:01:10]} 25. Bxf6 {[%clk 0:02:04]}  gxf6 {[%clk 0:01:11]} 26. Be4 {[%clk 0:02:03]}  b5 {[%clk 0:01:02]} 27. Bb7 {[%clk 0:02:02]}  a5 {[%clk 0:01:02]} 28. Ke2 {[%clk 0:02:02]}  Kf8 {[%clk 0:01:01]} 29. h4 {[%clk 0:01:58]}  Ke7 {[%clk 0:01:01]} 30. Kd3 {[%clk 0:01:53]}  Kd6 {[%clk 0:01:01]} 31. f3 {[%clk 0:01:51]}  a4 {[%clk 0:00:50]} 32. Ba6 {[%clk 0:01:46]}  b4 {[%clk 0:00:49]} 33. g4 {[%clk 0:01:43]}  h6 {[%clk 0:00:46]} 34. e4 {[%clk 0:01:36]}  c4+ {[%clk 0:00:30]} 35. Bxc4 {[%clk 0:01:28]}  Bxc4+ {[%clk 0:00:31]} 36. Kxc4 {[%clk 0:01:28]}  a3 {[%clk 0:00:32]} 37. bxa3 {[%clk 0:01:29]}  bxa3 {[%clk 0:00:33]} 38. Kb3 {[%clk 0:01:27]}  Ke5 {[%clk 0:00:33]} 39. h5 {[%clk 0:01:22]}  Kf4 {[%clk 0:00:30]} 40. Kxa3 {[%clk 0:01:22]}  Kxf3 {[%clk 0:00:30]} 41. e5 {[%clk 0:01:22]}  Kxg4 {[%clk 0:00:28]} 42. exf6 {[%clk 0:01:22]}  Kxh5 {[%clk 0:00:28]} 0-1


[Site "https://www.chess.com"]

[Event "Titled Tuesday Blitz May 03 Late 2022"]
[White "Koelle, Tobias"]
[Black "Kamsky, Gata"]
[WhiteFideId "16207378"]
[BlackFideId "2000024"]
[WhiteElo "2541"]
[BlackElo "2645"]
[Result "0-1"]
[Round "09"]
[TimeControl "180+1"]
[Date "2022.05.03"]
[WhiteClock "0:00:07"]
[BlackClock "0:00:07"]

1. Nf3 {[%clk 0:02:54]}  Nf6 {[%clk 0:02:58]} 2. c4 {[%clk 0:02:54]}  g6 {[%clk 0:02:57]} 3. Nc3 {[%clk 0:02:54]}  Bg7 {[%clk 0:02:57]} 4. g3 {[%clk 0:02:55]}  O-O {[%clk 0:02:56]} 5. Bg2 {[%clk 0:02:56]}  c6 {[%clk 0:02:54]} 6. O-O {[%clk 0:02:55]}  d5 {[%clk 0:02:54]} 7. d4 {[%clk 0:02:53]}  dxc4 {[%clk 0:02:53]} 8. Ne5 {[%clk 0:02:53]}  Be6 {[%clk 0:02:53]} 9. e4 {[%clk 0:02:47]}  Qc8 {[%clk 0:02:48]} 10. Qe2 {[%clk 0:02:46]}  Rd8 {[%clk 0:02:33]} 11. Rd1 {[%clk 0:02:43]}  Ng4 {[%clk 0:02:29]} 12. Nxg4 {[%clk 0:02:15]}  Bxg4 {[%clk 0:02:27]} 13. f3 {[%clk 0:02:16]}  Be6 {[%clk 0:02:25]} 14. Be3 {[%clk 0:02:16]}  Na6 {[%clk 0:02:22]} 15. a3 {[%clk 0:02:12]}  b5 {[%clk 0:02:20]} 16. Rac1 {[%clk 0:02:09]}  b4 {[%clk 0:02:15]} 17. axb4 {[%clk 0:02:08]}  Nxb4 {[%clk 0:02:15]} 18. e5 {[%clk 0:01:43]}  Nd3 {[%clk 0:02:14]} 19. Rc2 {[%clk 0:01:42]}  Rb8 {[%clk 0:02:00]} 20. Ne4 {[%clk 0:01:41]}  c5 {[%clk 0:01:59]} 21. dxc5 {[%clk 0:01:34]}  Bxe5 {[%clk 0:01:56]} 22. Rdd2 {[%clk 0:01:19]}  Qa6 {[%clk 0:01:41]} 23. h4 {[%clk 0:01:14]}  Bxb2 {[%clk 0:01:35]} 24. Kh2 {[%clk 0:01:11]}  Bg7 {[%clk 0:01:33]} 25. h5 {[%clk 0:01:09]}  Nb4 {[%clk 0:01:27]} 26. Rc1 {[%clk 0:01:01]}  Rxd2 {[%clk 0:01:25]} 27. Bxd2 {[%clk 0:01:01]}  Nd3 {[%clk 0:01:24]} 28. Rc2 {[%clk 0:00:57]}  Qc6 {[%clk 0:01:08]} 29. h6 {[%clk 0:00:56]}  Bd4 {[%clk 0:01:07]} 30. Be3 {[%clk 0:00:56]}  Bxe3 {[%clk 0:01:04]} 31. Qxe3 {[%clk 0:00:57]}  Bd5 {[%clk 0:01:02]} 32. Qd4 {[%clk 0:00:34]}  f6 {[%clk 0:01:00]} 33. f4 {[%clk 0:00:30]}  Nb4 {[%clk 0:00:55]} 34. Rxc4 {[%clk 0:00:27]}  a5 {[%clk 0:00:45]} 35. Rc1 {[%clk 0:00:15]}  Kf8 {[%clk 0:00:43]} 36. Rd1 {[%clk 0:00:14]}  Qe6 {[%clk 0:00:37]} 37. Re1 {[%clk 0:00:10]}  Qf5 {[%clk 0:00:35]} 38. c6 {[%clk 0:00:06]}  Nxc6 {[%clk 0:00:33]} 39. Qe3 {[%clk 0:00:05]}  Qh5+ {[%clk 0:00:32]} 40. Kg1 {[%clk 0:00:06]}  Qxh6 {[%clk 0:00:30]} 41. Nxf6 {[%clk 0:00:06]}  Bxg2 {[%clk 0:00:28]} 42. Nd7+ {[%clk 0:00:05]}  Ke8 {[%clk 0:00:27]} 43. Nxb8 {[%clk 0:00:05]}  Qh1+ {[%clk 0:00:22]} 44. Kf2 {[%clk 0:00:05]}  Qh2 {[%clk 0:00:22]} 45. Rg1 {[%clk 0:00:05]}  Bd5+ {[%clk 0:00:21]} 46. Ke1 {[%clk 0:00:05]}  Nxb8 {[%clk 0:00:21]} 47. Qc5 {[%clk 0:00:03]}  Nd7 {[%clk 0:00:20]} 48. Qd4 {[%clk 0:00:03]}  Nf6 {[%clk 0:00:20]} 49. g4 {[%clk 0:00:03]}  Qc2 {[%clk 0:00:18]} 50. g5 {[%clk 0:00:03]}  Ne4 {[%clk 0:00:19]} 51. Qe3 {[%clk 0:00:02]}  Qc3+ {[%clk 0:00:19]} 52. Qxc3 {[%clk 0:00:02]}  Nxc3 {[%clk 0:00:19]} 53. Kd2 {[%clk 0:00:03]}  Ne4+ {[%clk 0:00:19]} 54. Ke3 {[%clk 0:00:03]}  a4 {[%clk 0:00:19]} 55. Kd4 {[%clk 0:00:04]}  Bc6 {[%clk 0:00:19]} 56. Rh1 {[%clk 0:00:04]}  Nd6 {[%clk 0:00:17]} 57. Rxh7 {[%clk 0:00:04]}  a3 {[%clk 0:00:17]} 58. Kc3 {[%clk 0:00:05]}  a2 {[%clk 0:00:17]} 59. Kb2 {[%clk 0:00:05]}  Bd5 {[%clk 0:00:17]} 60. Rh6 {[%clk 0:00:04]}  Kf7 {[%clk 0:00:16]} 61. Rh7+ {[%clk 0:00:04]}  Ke6 {[%clk 0:00:16]} 62. Rg7 {[%clk 0:00:05]}  Kf5 {[%clk 0:00:15]} 63. Rxe7 {[%clk 0:00:05]}  Kxf4 {[%clk 0:00:15]} 64. Rd7 {[%clk 0:00:06]}  Ke5 {[%clk 0:00:15]} 65. Rg7 {[%clk 0:00:07]}  Kf5 {[%clk 0:00:15]} 66. Rd7 {[%clk 0:00:06]}  Ke6 {[%clk 0:00:14]} 67. Rg7 {[%clk 0:00:06]}  Nc4+ {[%clk 0:00:11]} 68. Kxa2 {[%clk 0:00:05]}  Ne5+ {[%clk 0:00:11]} 69. Kb2 {[%clk 0:00:06]}  Kf5 {[%clk 0:00:11]} 70. Kc3 {[%clk 0:00:06]}  Bf3 {[%clk 0:00:10]} 71. Kd4 {[%clk 0:00:06]}  Bh5 {[%clk 0:00:10]} 72. Rc7 {[%clk 0:00:04]}  Nf3+ {[%clk 0:00:10]} 73. Ke3 {[%clk 0:00:04]}  Nxg5 {[%clk 0:00:08]} 74. Rc5+ {[%clk 0:00:05]}  Kf6 {[%clk 0:00:09]} 75. Ra5 {[%clk 0:00:06]}  Ne6 {[%clk 0:00:09]} 76. Ke4 {[%clk 0:00:06]}  g5 {[%clk 0:00:08]} 77. Rb5 {[%clk 0:00:05]}  Bg6+ {[%clk 0:00:08]} 78. Ke3 {[%clk 0:00:05]}  Bf5 {[%clk 0:00:09]} 79. Rb6 {[%clk 0:00:05]}  g4 {[%clk 0:00:09]} 80. Kf2 {[%clk 0:00:05]}  Kg5 {[%clk 0:00:09]} 81. Kg3 {[%clk 0:00:06]}  Nc5 {[%clk 0:00:09]} 82. Rb5 {[%clk 0:00:06]}  Ne4+ {[%clk 0:00:09]} 83. Kg2 {[%clk 0:00:06]}  Kf4 {[%clk 0:00:10]} 84. Rb4 {[%clk 0:00:07]}  g3 {[%clk 0:00:10]} 85. Rb3 {[%clk 0:00:07]}  Bg4 {[%clk 0:00:09]} 86. Rc3 {[%clk 0:00:07]}  Nxc3 {[%clk 0:00:07]} 0-1


[Site "https://www.chess.com"]

[Event "Titled Tuesday Blitz May 03 Late 2022"]
[White "Kollars, Dmitrij"]
[Black "Papasimakopoulos, Alexandros"]
[WhiteFideId "12909572"]
[BlackFideId "4244125"]
[WhiteElo "2584"]
[BlackElo "2340"]
[Result "1-0"]
[Round "09"]
[TimeControl "180+1"]
[Date "2022.05.03"]
[WhiteClock "0:01:04"]
[BlackClock "0:00:59"]

1. Nf3 {[%clk 0:02:49]}  d5 {[%clk 0:02:56]} 2. e3 {[%clk 0:02:49]}  Bg4 {[%clk 0:02:56]} 3. c4 {[%clk 0:02:49]}  c6 {[%clk 0:02:52]} 4. h3 {[%clk 0:02:49]}  Bxf3 {[%clk 0:02:51]} 5. Qxf3 {[%clk 0:02:50]}  e6 {[%clk 0:02:51]} 6. d4 {[%clk 0:02:50]}  Nd7 {[%clk 0:02:51]} 7. Nc3 {[%clk 0:02:50]}  f5 {[%clk 0:02:51]} 8. g4 {[%clk 0:02:48]}  g6 {[%clk 0:02:50]} 9. gxf5 {[%clk 0:02:48]}  Qf6 {[%clk 0:02:48]} 10. Bd3 {[%clk 0:02:36]}  gxf5 {[%clk 0:02:37]} 11. Bd2 {[%clk 0:02:34]}  Bd6 {[%clk 0:02:30]} 12. cxd5 {[%clk 0:02:31]}  cxd5 {[%clk 0:02:30]} 13. Nb5 {[%clk 0:02:31]}  Bb8 {[%clk 0:02:29]} 14. Rc1 {[%clk 0:02:30]}  Ne7 {[%clk 0:02:30]} 15. Nc7+ {[%clk 0:02:22]}  Bxc7 {[%clk 0:02:29]} 16. Rxc7 {[%clk 0:02:23]}  Rb8 {[%clk 0:02:17]} 17. Bb5 {[%clk 0:02:19]}  Nc6 {[%clk 0:02:17]} 18. Bxc6 {[%clk 0:01:55]}  bxc6 {[%clk 0:02:16]} 19. Rg1 {[%clk 0:01:56]}  Rxb2 {[%clk 0:02:07]} 20. Ke2 {[%clk 0:01:35]}  Rxa2 {[%clk 0:01:55]} 21. Qg3 {[%clk 0:01:23]}  f4 {[%clk 0:01:39]} 22. Qg7 {[%clk 0:01:16]}  f3+ {[%clk 0:01:26]} 23. Kd1 {[%clk 0:01:16]}  Qxg7 {[%clk 0:00:59]} 24. Rxg7 {[%clk 0:01:16]}  Nb6 {[%clk 0:00:59]} 25. Rb7 {[%clk 0:01:05]}  Kf8 {[%clk 0:00:59]} 26. Bb4+ {[%clk 0:01:04]} 1-0


[Site "https://www.chess.com"]

[Event "Titled Tuesday Blitz May 03 Late 2022"]
[White "Kujawski, Adam"]
[Black "Melikhov, Evgeny V."]
[WhiteFideId "1100920"]
[BlackFideId "4122046"]
[WhiteElo "2053"]
[BlackElo "1931"]
[Result "0-1"]
[Round "09"]
[TimeControl "180+1"]
[Date "2022.05.03"]
[WhiteClock "0:00:01"]
[BlackClock "0:00:44"]

1. e4 {[%clk 0:03:00]}  c5 {[%clk 0:02:59]} 2. Nf3 {[%clk 0:03:00]}  d6 {[%clk 0:02:58]} 3. d4 {[%clk 0:03:00]}  cxd4 {[%clk 0:02:59]} 4. Nxd4 {[%clk 0:03:01]}  Nf6 {[%clk 0:02:59]} 5. Nc3 {[%clk 0:03:01]}  a6 {[%clk 0:02:59]} 6. Bg5 {[%clk 0:03:02]}  e6 {[%clk 0:02:58]} 7. f4 {[%clk 0:03:02]}  Nbd7 {[%clk 0:02:58]} 8. Qf3 {[%clk 0:02:59]}  Qc7 {[%clk 0:02:58]} 9. O-O-O {[%clk 0:02:58]}  b5 {[%clk 0:02:58]} 10. e5 {[%clk 0:02:55]}  Bb7 {[%clk 0:02:58]} 11. Qh3 {[%clk 0:02:55]}  dxe5 {[%clk 0:02:54]} 12. Nxe6 {[%clk 0:02:55]}  fxe6 {[%clk 0:02:54]} 13. Qxe6+ {[%clk 0:02:56]}  Be7 {[%clk 0:02:54]} 14. Bxb5 {[%clk 0:02:57]}  axb5 {[%clk 0:02:54]} 15. Nxb5 {[%clk 0:02:57]}  Qc6 {[%clk 0:02:54]} 16. Nd6+ {[%clk 0:02:56]}  Kd8 {[%clk 0:02:50]} 17. Bxf6 {[%clk 0:01:17]}  Bxf6 {[%clk 0:02:35]} 18. fxe5 {[%clk 0:01:08]}  Bg5+ {[%clk 0:02:12]} 19. Kb1 {[%clk 0:01:08]}  Kc7 {[%clk 0:01:58]} 20. Rd3 {[%clk 0:01:05]}  Ra5 {[%clk 0:01:29]} 21. Rhd1 {[%clk 0:00:35]}  Nc5 {[%clk 0:01:07]} 22. Qf7+ {[%clk 0:00:29]}  Kb8 {[%clk 0:01:07]} 23. Nxb7 {[%clk 0:00:11]}  Nxb7 {[%clk 0:00:59]} 24. Rb3 {[%clk 0:00:06]}  Rc8 {[%clk 0:00:56]} 25. c3 {[%clk 0:00:04]}  Rb5 {[%clk 0:00:52]} 26. Rxb5 {[%clk 0:00:03]}  Qxb5 {[%clk 0:00:52]} 27. Qxg7 {[%clk 0:00:03]}  Qe2 {[%clk 0:00:47]} 28. Qd7 {[%clk 0:00:01]}  Rd8 {[%clk 0:00:44]} 0-1


[Site "https://www.chess.com"]

[Event "Titled Tuesday Blitz May 03 Late 2022"]
[White "Matinian, Nikita"]
[Black "Sokolovsky, Yahli"]
[WhiteFideId "24129100"]
[BlackFideId "2820242"]
[WhiteElo "2422"]
[BlackElo "1770"]
[Result "1-0"]
[Round "09"]
[TimeControl "180+1"]
[Date "2022.05.03"]
[WhiteClock "0:00:08"]
[BlackClock "0:00:04"]

1. e4 {[%clk 0:03:00]}  g6 {[%clk 0:02:53]} 2. d4 {[%clk 0:02:59]}  Bg7 {[%clk 0:02:53]} 3. Nc3 {[%clk 0:03:00]}  d6 {[%clk 0:02:53]} 4. Be3 {[%clk 0:02:57]}  a6 {[%clk 0:02:53]} 5. g4 {[%clk 0:02:55]}  h6 {[%clk 0:02:45]} 6. Bg2 {[%clk 0:02:55]}  Nf6 {[%clk 0:02:39]} 7. h3 {[%clk 0:02:52]}  Nc6 {[%clk 0:02:30]} 8. Nge2 {[%clk 0:02:51]}  e5 {[%clk 0:02:25]} 9. d5 {[%clk 0:02:47]}  Ne7 {[%clk 0:02:25]} 10. f4 {[%clk 0:02:47]}  exf4 {[%clk 0:02:21]} 11. Nxf4 {[%clk 0:02:38]}  Nd7 {[%clk 0:02:22]} 12. Nd3 {[%clk 0:02:33]}  b5 {[%clk 0:02:11]} 13. a4 {[%clk 0:02:30]}  b4 {[%clk 0:02:03]} 14. Nxb4 {[%clk 0:02:30]}  Rb8 {[%clk 0:02:02]} 15. Nc6 {[%clk 0:02:22]}  Nxc6 {[%clk 0:02:01]} 16. dxc6 {[%clk 0:02:23]}  Ne5 {[%clk 0:01:48]} 17. O-O {[%clk 0:02:20]}  Rxb2 {[%clk 0:01:42]} 18. Nd5 {[%clk 0:01:53]}  Be6 {[%clk 0:01:37]} 19. Bd4 {[%clk 0:01:44]}  Rb8 {[%clk 0:01:37]} 20. c3 {[%clk 0:01:36]}  O-O {[%clk 0:01:30]} 21. Qe2 {[%clk 0:01:36]}  Nxc6 {[%clk 0:00:44]} 22. Bxg7 {[%clk 0:01:35]}  Kxg7 {[%clk 0:00:45]} 23. Qxa6 {[%clk 0:01:35]}  Bxd5 {[%clk 0:00:45]} 24. exd5 {[%clk 0:01:35]}  Ne5 {[%clk 0:00:46]} 25. Qe2 {[%clk 0:01:32]}  Ra8 {[%clk 0:00:45]} 26. a5 {[%clk 0:01:31]}  Qb8 {[%clk 0:00:45]} 27. a6 {[%clk 0:01:30]}  Qb6+ {[%clk 0:00:40]} 28. Kh1 {[%clk 0:01:28]}  Rfb8 {[%clk 0:00:32]} 29. Rf4 {[%clk 0:01:01]}  Qc5 {[%clk 0:00:31]} 30. Rfa4 {[%clk 0:00:58]}  Qxc3 {[%clk 0:00:24]} 31. a7 {[%clk 0:00:57]}  Rb7 {[%clk 0:00:21]} 32. R4a3 {[%clk 0:00:51]}  Qc5 {[%clk 0:00:21]} 33. Qa2 {[%clk 0:00:46]}  Qb6 {[%clk 0:00:14]} 34. Ra6 {[%clk 0:00:46]}  Qb2 {[%clk 0:00:13]} 35. Qxb2 {[%clk 0:00:45]}  Rxb2 {[%clk 0:00:14]} 36. R1a3 {[%clk 0:00:16]}  Rb7 {[%clk 0:00:14]} 37. Bf1 {[%clk 0:00:14]}  Nd7 {[%clk 0:00:13]} 38. R6a5 {[%clk 0:00:14]}  Nc5 {[%clk 0:00:10]} 39. Bb5 {[%clk 0:00:14]}  Rb6 {[%clk 0:00:01]} 40. Bc6 {[%clk 0:00:14]}  Rxa7 {[%clk 0:00:02]} 41. Rxa7 {[%clk 0:00:13]}  Rb1+ {[%clk 0:00:02]} 42. Kg2 {[%clk 0:00:13]}  Rb2+ {[%clk 0:00:03]} 43. Kf1 {[%clk 0:00:12]}  Rb1+ {[%clk 0:00:03]} 44. Ke2 {[%clk 0:00:12]}  Rb2+ {[%clk 0:00:04]} 45. Kd1 {[%clk 0:00:12]}  Rb1+ {[%clk 0:00:04]} 46. Kc2 {[%clk 0:00:13]}  Rh1 {[%clk 0:00:05]} 47. Rxc7 {[%clk 0:00:12]}  Rh2+ {[%clk 0:00:06]} 48. Kd1 {[%clk 0:00:12]}  Rh1+ {[%clk 0:00:06]} 49. Ke2 {[%clk 0:00:12]}  Ne4 {[%clk 0:00:07]} 50. Re7 {[%clk 0:00:09]}  Rh2+ {[%clk 0:00:06]} 51. Kf1 {[%clk 0:00:09]}  Ng3+ {[%clk 0:00:04]} 52. Rxg3 {[%clk 0:00:08]} 1-0


[Site "https://www.chess.com"]